bitfinex/quotes_ETHUSD_20240921
["timestamp","ask_amount","ask_price","bid_price","bid_amount"]
[1726899917895,0.05386622,2551.9,2551.8,3.0]
[1726899918292,2.2859081,2552.2,2551.8,3.0]
[1726899918498,0.05393507,2551.9,2551.8,3.0]
[1726899918743,2.2859081,2552.2,2551.8,3.0]
[1726899919057,2.51449891,2552.2,2551.8,3.0]
[1726899919193,0.05393507,2552.1,2551.8,3.0]
[1726899920837,0.05393507,2552.1,2551.9,1.72704951]
[1726899922067,0.05393507,2552.1,2551.9,1.77112761]
[1726899922436,0.05393507,2552.1,2552.0,3.0]
[1726899927830,0.0178081,2552.2,2552.0,3.0]
[1726899928068,0.05396948,2552.1,2552.0,3.0]
[1726899928269,0.0178081,2552.2,2552.0,3.0]
[1726899928568,0.05396948,2552.1,2552.0,3.0]
[1726899928933,0.0178081,2552.2,2552.0,3.0]
[1726899929795,0.05396948,2552.1,2552.0,3.0]
[1726899930150,0.0178081,2552.2,2552.0,3.0]
[1726899930579,0.05409425,2552.1,2552.0,3.0]
[1726899930896,2.2681,2552.1,2551.7,4.72704951]
[1726899931557,0.05409425,2552.0,2551.7,4.72704951]
[1726899931758,0.05409425,2552.0,2551.7,1.72704951]
[1726899938294,0.05409425,2552.0,2551.9,4.72704951]
[1726899938682,0.0178081,2552.2,2551.9,4.72704951]
[1726899938875,0.05409425,2552.0,2551.9,4.72704951]
[1726899939074,0.0178081,2552.2,2551.9,4.72704951]
[1726899939307,0.05409425,2552.1,2551.9,4.72704951]
[1726899947801,0.05409425,2552.1,2551.7,1.72704951]
[1726899948109,0.05409425,2552.1,2551.7,1.77111966]
[1726899948574,0.05409425,2552.1,2551.7,1.72704951]
[1726899949008,0.05409425,2552.1,2551.9,1.72704951]
[1726899949179,0.05409425,2552.1,2551.9,4.72704951]
[1726899950912,0.05409425,2552.1,2552.0,3.0]
[1726899951510,0.0178081,2552.2,2552.0,3.0]
[1726899952080,0.05421038,2552.1,2552.0,3.0]
[1726899952315,0.0178081,2552.2,2552.0,3.0]
[1726899952928,0.05421038,2552.1,2552.0,3.0]
[1726899953277,0.0178081,2552.2,2552.0,3.0]
[1726899953479,0.05423189,2552.1,2552.0,3.0]
[1726899953710,0.0178081,2552.2,2552.0,3.0]
[1726899954091,0.05423189,2552.1,2552.0,3.0]
[1726899954290,0.0178081,2552.2,2552.0,3.0]
[1726899954521,0.05423189,2552.1,2552.0,3.0]
[1726899954719,0.05423189,2552.1,2552.0,3.04405588]
[1726899954922,0.0178081,2552.2,2552.0,3.04405588]
[1726899955220,0.0178081,2552.2,2552.1,1.72704951]
[1726899956305,0.0178081,2552.2,2552.0,3.0]
[1726899956490,0.0178081,2552.2,2551.9,1.72704951]
[1726899956691,2.4442,2552.1,2551.9,1.72704951]
[1726899958782,0.0178081,2552.2,2551.9,1.72704951]
[1726899958988,0.0178081,2552.2,2552.1,7.64404951]
[1726899959380,0.0370926,2552.9,2552.3,2.367]
[1726899959525,0.0370926,2552.9,2552.8,1.72704951]
[1726899960163,0.0370926,2552.9,2552.8,4.72704951]
[1726899960337,0.0370926,2552.9,2552.8,4.77103227]
[1726899960743,0.08946113,2552.9,2552.8,4.77103227]
[1726899961050,0.0370926,2552.9,2552.8,4.72704951]
[1726899961428,0.08964603,2552.9,2552.8,4.72704951]
[1726899963957,0.08964603,2552.9,2552.8,1.72704951]
[1726899964465,0.08964603,2552.9,2552.6,1.72704951]
[1726899964645,0.08964603,2552.9,2552.6,4.72704951]
[1726899968760,0.08964603,2552.9,2552.8,1.72704951]
[1726899968960,2.36024603,2552.9,2552.6,1.72704951]
[1726899974947,0.08964603,2552.9,2552.6,1.72704951]
[1726899975281,0.08964603,2552.9,2552.8,1.72704951]
[1726899977051,0.08964603,2552.9,2552.6,1.72704951]
[1726899979194,0.08964603,2552.9,2552.8,1.72704951]
[1726899982423,0.08964603,2552.9,2552.6,1.72704951]
[1726899987717,2.4502,2552.8,2552.6,1.72704951]
[1726899987922,0.05292755,2552.7,2552.6,1.72704951]
[1726899988327,2.4502,2552.8,2552.6,1.72704951]
[1726899988831,0.05292755,2552.7,2552.6,1.72704951]
[1726899989381,2.4502,2552.8,2552.6,1.72704951]
[1726899989701,0.05292755,2552.7,2552.6,1.72704951]
[1726899989901,2.4502,2552.8,2552.6,1.72704951]
[1726899990105,0.05292755,2552.7,2552.6,1.72704951]
[1726899990412,2.4502,2552.8,2552.6,1.72704951]
[1726899990819,0.05292755,2552.7,2552.6,1.72704951]
[1726899991228,2.4502,2552.8,2552.6,1.72704951]
[1726899991525,0.05292755,2552.7,2552.6,1.72704951]
[1726899991918,0.46536365,2552.9,2552.6,1.72704951]
[1726899992222,0.05292755,2552.8,2552.6,2.29901015]
[1726899992423,0.05292755,2552.8,2552.7,4.72704951]
[1726900001129,0.05292755,2552.8,2552.7,7.0868375]
[1726900001330,0.0370926,2552.9,2552.8,0.55]
[1726900001546,0.0370926,2552.9,2552.8,6.37320989]
[1726900001749,0.0370926,2552.9,2552.8,8.00565909]
[1726900001972,0.08833328,2552.9,2552.8,6.37320989]
[1726900002138,0.0370926,2552.9,2552.8,6.37320989]
[1726900002342,0.08833757,2552.9,2552.8,8.00565909]
[1726900002557,0.0370926,2552.9,2552.8,6.37320989]
[1726900002771,0.08840635,2552.9,2552.8,6.37320989]
[1726900003067,0.0370926,2552.9,2552.8,6.37320989]
[1726900003230,0.08840635,2552.9,2552.8,6.4171634]
[1726900003425,0.0370926,2552.9,2552.8,8.0496126]
[1726900003632,0.08840635,2552.9,2552.8,8.00565909]
[1726900003862,0.0370926,2552.9,2552.8,6.37320989]
[1726900004070,0.08840635,2552.9,2552.8,6.37320989]
[1726900004228,0.0370926,2552.9,2552.8,6.37320989]
[1726900004449,0.08840635,2552.9,2552.8,8.04961331]
[1726900004656,0.0370926,2552.9,2552.8,8.00565909]
[1726900006569,0.0370926,2552.9,2552.8,6.37320989]
[1726900007198,0.0370926,2552.9,2552.8,8.00565909]
[1726900007493,0.0370926,2552.9,2552.8,6.37320989]
[1726900007647,0.0370926,2552.9,2552.8,8.00565909]
[1726900007851,0.0370926,2552.9,2552.8,6.37320989]
[1726900008052,0.0370926,2552.9,2552.8,8.00565909]
[1726900008495,0.0370926,2552.9,2552.8,6.37320989]
[1726900009151,0.0370926,2552.9,2552.8,5.82320989]
[1726900009614,0.08846222,2552.9,2552.7,4.77102591]
[1726900009821,0.0370926,2552.9,2552.7,4.77102591]
[1726900009980,0.0370926,2552.9,2552.7,5.2344594]
[1726900009981,0.05136102,2552.8,2552.7,5.2344594]
[1726900010501,0.0370926,2552.9,2552.7,5.2344594]
[1726900012029,0.0370926,2552.9,2552.8,0.04396591]
[1726900012530,0.08844932,2552.9,2552.8,0.04396591]
[1726900012682,0.0370926,2552.9,2552.8,0.04396591]
[1726900012888,0.0370926,2552.9,2552.7,5.27842543]
[1726900013186,0.05149856,2552.8,2552.7,5.27842543]
[1726900013610,0.0370926,2552.9,2552.7,5.27842543]
[1726900014136,0.05149856,2552.8,2552.7,5.27842543]
[1726900014429,0.0370926,2552.9,2552.7,5.27842543]
[1726900014791,0.05149856,2552.8,2552.7,5.27842543]
[1726900015236,0.0370926,2552.9,2552.7,5.27842543]
[1726900015782,0.05149856,2552.8,2552.7,5.27842543]
[1726900016127,0.0370926,2552.9,2552.7,5.2344594]
[1726900016630,0.05149856,2552.8,2552.7,4.72704951]
[1726900016936,0.0370926,2552.9,2552.7,5.2344594]
[1726900017639,0.0370926,2552.9,2552.8,1.72704951]
[1726900017935,0.08859116,2552.9,2552.8,1.72704951]
[1726900031182,0.08859116,2552.9,2552.8,7.5443594]
[1726900032139,0.08859116,2552.9,2552.8,2.2344594]
[1726900032351,0.08859116,2552.9,2552.8,2.09653235]
[1726900038318,0.08859116,2552.9,2552.8,4.72704951]
[1726900042504,0.08859116,2552.9,2552.8,5.2344594]
[1726900047035,0.08859116,2552.9,2552.8,5.2784484]
[1726900047398,0.08859116,2552.9,2552.8,5.2344594]
[1726900048327,0.08859116,2552.9,2552.8,5.27844845]
[1726900048838,0.08859116,2552.9,2552.8,5.2344594]
[1726900049200,0.08859116,2552.9,2552.8,5.27844849]
[1726900050749,0.08859116,2552.9,2552.8,5.2344594]
[1726900053805,0.08859116,2552.9,2552.8,6.8669086]
[1726900054936,0.08859116,2552.9,2552.8,1.72704951]
[1726900057148,0.08859116,2552.9,2552.8,1.7710397]
[1726900058514,2.3981,2552.8,2552.7,3.0]
[1726900058831,0.05145129,2552.8,2552.6,6.35949871]
[1726900059040,0.05145129,2552.8,2552.6,6.40349897]
[1726900059955,0.05145129,2552.8,2552.6,6.91090886]
[1726900064755,0.05145129,2552.8,2552.6,6.8669086]
[1726900065225,0.05145129,2552.8,2552.6,6.91091052]
[1726900069435,0.05145129,2552.8,2552.6,5.2344594]
[1726900069634,0.05145129,2552.8,2552.6,0.50740989]
[1726900069868,0.05145129,2552.8,2552.6,5.2344594]
[1726900072138,0.05145129,2552.8,2552.6,3.50740989]
[1726900072338,0.05145129,2552.8,2552.7,4.72704951]
[1726900072764,0.05145129,2552.8,2552.7,1.72704951]
[1726900080053,0.05145129,2552.8,2552.5,1.6324492]
[1726900080289,2.457,2552.7,2552.3,1.72704951]
[1726900080591,0.04950401,2552.6,2552.3,1.72704951]
[1726900081352,0.04950401,2552.6,2552.3,5.2344594]
[1726900081551,0.04950401,2552.6,2552.3,2.2344594]
[1726900082987,2.71155439,2552.7,2552.3,2.2344594]
[1726900083395,0.04950401,2552.6,2552.3,0.50740989]
[1726900083581,0.32560985,2552.6,2552.3,2.2344594]
[1726900083898,0.27610584,2552.6,2552.3,2.2344594]
[1726900084963,0.04931023,2552.5,2552.3,2.2344594]
[1726900085696,2.457,2552.7,2552.3,2.2344594]
[1726900086390,0.04931023,2552.6,2552.3,2.2344594]
[1726900087402,2.457,2552.5,2552.3,0.50740989]
[1726900087609,2.457,2552.4,2551.6,1.6324492]
[1726900087764,2.55497553,2552.3,2551.3,3.35949871]
[1726900088086,2.457,2552.1,2551.3,1.72704951]
[1726900088288,2.457,2551.9,2551.3,1.72704951]
[1726900089007,0.14729438,2551.8,2551.3,1.72704951]
[1726900089211,2.457,2551.7,2551.2,3.0]
[1726900089503,2.457,2551.7,2551.2,1.72704951]
[1726900089704,0.04931884,2551.6,2551.2,1.72704951]
[1726900090057,0.0979841,2551.6,2551.2,1.72704951]
[1726900090409,5.56348653,2552.5,2551.2,1.72704951]
[1726900090410,2.457,2552.7,2551.5,2.3153]
[1726900090702,2.457,2552.7,2552.2,1.72704951]
[1726900090950,0.04662558,2552.5,2552.2,1.72704951]
[1726900091286,2.457,2552.7,2552.2,1.72704951]
[1726900095857,2.457,2552.7,2552.4,1.72704951]
[1726900096041,0.04662558,2552.6,2552.4,1.72704951]
[1726900096346,2.457,2552.7,2552.4,1.72704951]
[1726900096750,0.04700964,2552.6,2552.4,1.72704951]
[1726900098964,0.04700964,2552.6,2552.5,5.4986]
[1726900099466,0.0370926,2552.9,2552.5,5.4986]
[1726900099625,0.04705709,2552.6,2552.5,5.4986]
[1726900099959,0.0370926,2552.9,2552.5,5.4986]
[1726900100460,0.04707866,2552.8,2552.5,5.4986]
[1726900102278,0.04707866,2552.8,2552.4,1.72704951]
[1726900102556,0.04707866,2552.8,2552.4,4.72704951]
[1726900105830,2.4028,2552.7,2552.4,4.72704951]
[1726900106245,0.04757056,2552.6,2552.4,4.72704951]
[1726900106664,2.4028,2552.7,2552.4,4.72704951]
[1726900107155,0.04757056,2552.6,2552.4,4.72704951]
[1726900107563,2.4028,2552.7,2552.4,4.72704951]
[1726900107935,0.04757056,2552.6,2552.4,4.72704951]
[1726900108137,2.4028,2552.7,2552.4,4.72704951]
[1726900108335,0.04757056,2552.6,2552.4,4.72704951]
[1726900108535,2.4028,2552.7,2552.4,4.72704951]
[1726900108734,0.04757056,2552.6,2552.4,4.72704951]
[1726900108936,2.4028,2552.7,2552.4,4.72704951]
[1726900109242,0.04757056,2552.6,2552.4,4.72704951]
[1726900109639,2.4028,2552.7,2552.4,1.72704951]
[1726900110054,0.04757056,2552.6,2552.4,1.72704951]
[1726900110367,2.4028,2552.7,2552.4,1.72704951]
[1726900110871,0.04757056,2552.6,2552.4,1.72704951]
[1726900111225,2.4028,2552.7,2552.4,1.72704951]
[1726900111626,0.04757056,2552.6,2552.4,1.72704951]
[1726900112061,2.4028,2552.7,2552.4,1.72704951]
[1726900112432,0.04757056,2552.6,2552.4,1.72704951]
[1726900112769,2.4028,2552.7,2552.4,1.72704951]
[1726900113276,0.04757056,2552.6,2552.4,1.72704951]
[1726900113658,2.4028,2552.7,2552.4,1.72704951]
[1726900114041,0.04757056,2552.6,2552.4,1.72704951]
[1726900114351,2.4028,2552.7,2552.4,1.72704951]
[1726900114750,0.04757056,2552.6,2552.4,1.72704951]
[1726900114979,2.4028,2552.7,2552.4,1.72704951]
[1726900115354,0.04757056,2552.6,2552.4,1.72704951]
[1726900115758,2.4028,2552.7,2552.4,1.72704951]
[1726900116171,0.04757056,2552.6,2552.4,1.72704951]
[1726900116540,2.4028,2552.7,2552.4,1.72704951]
[1726900116747,0.04757056,2552.6,2552.4,1.72704951]
[1726900117093,2.4028,2552.7,2552.4,1.72704951]
[1726900117456,0.04757056,2552.6,2552.4,1.72704951]
[1726900117852,2.4028,2552.7,2552.4,1.72704951]
[1726900118182,0.04757056,2552.6,2552.4,1.72704951]
[1726900118681,2.4028,2552.7,2552.4,1.72704951]
[1726900119186,0.04757056,2552.6,2552.4,1.72704951]
[1726900119556,2.4028,2552.7,2552.4,1.72704951]
[1726900119737,0.04757056,2552.6,2552.4,1.72704951]
[1726900119942,2.4028,2552.7,2552.4,1.72704951]
[1726900120170,0.04755333,2552.6,2552.4,1.72704951]
[1726900120583,2.4028,2552.7,2552.4,1.72704951]
[1726900120950,0.04757489,2552.6,2552.4,1.72704951]
[1726900121551,0.04757489,2552.6,2552.2,4.72704951]
[1726900121876,2.4028,2552.7,2552.2,4.72704951]
[1726900122048,2.64678926,2552.7,2552.2,4.72704951]
[1726900122383,0.04757489,2552.6,2552.2,4.72704951]
[1726900122886,2.4028,2552.7,2552.2,4.72704951]
[1726900123246,0.04757489,2552.6,2552.2,4.72704951]
[1726900123776,2.4028,2552.7,2552.4,1.72704951]
[1726900124284,0.04757489,2552.6,2552.4,1.72704951]
[1726900124659,2.4028,2552.7,2552.4,1.72704951]
[1726900125071,0.04757489,2552.6,2552.4,1.72704951]
[1726900125595,2.4028,2552.7,2552.4,1.72704951]
[1726900125885,2.4074926,2552.9,2552.4,1.72704951]
[1726900126198,0.24074926,2552.8,2552.5,3.0]
[1726900126348,0.28832415,2552.8,2552.5,3.0]
[1726900132821,0.04757489,2552.8,2552.5,3.0]
[1726900136008,0.04757489,2552.8,2552.6,1.72704951]
[1726900142174,0.04757489,2552.8,2552.7,3.59402232]
[1726900142379,0.04757489,2552.8,2552.7,8.67706779]
[1726900142615,0.04757489,2552.8,2552.7,8.63304547]
[1726900142832,0.0370926,2552.9,2552.8,7.15574951]
[1726900143012,0.0370926,2552.9,2552.8,8.83043781]
[1726900143313,0.0370926,2552.9,2552.8,8.78647236]
[1726900143677,0.0370926,2552.9,2552.8,7.15574951]
[1726900146181,0.0370926,2552.9,2552.8,7.38883495]
[1726900147732,0.0370926,2552.9,2552.8,7.34486978]
[1726900148580,0.0370926,2552.9,2552.8,8.91676605]
[1726900148788,0.08336628,2552.9,2552.8,8.91676605]
[1726900149014,0.0370926,2552.9,2552.8,8.91676605]
[1726900150679,0.0370926,2552.9,2552.8,8.40578881]
[1726900154558,1.93912506,2553.3,2552.8,8.40578881]
[1726900154775,0.61347012,2554.0,2553.3,5.4287]
[1726900154898,0.61347012,2554.0,2553.9,4.15574951]
[1726900155101,0.21759889,2554.0,2553.9,7.66666854]
[1726900155299,0.40359,2555.0,2553.9,7.66666854]
[1726900155300,0.34564008,2555.0,2554.0,3.0]
[1726900155629,0.04189429,2554.9,2554.6,1.72704951]
[1726900156295,0.34564008,2555.0,2554.3,2.3235]
[1726900156499,0.34564008,2555.0,2554.5,1.72704951]
[1726900156712,0.04189429,2554.9,2554.5,1.72704951]
[1726900157838,2.427,2554.8,2554.5,1.72704951]
[1726900158138,0.24688943,2554.7,2554.3,3.73080132]
[1726900158450,0.04189429,2554.6,2554.4,3.0]
[1726900162743,2.427,2554.8,2554.4,3.0]
[1726900162744,0.04263985,2554.5,2554.4,3.0]
[1726900162947,2.427,2554.8,2554.4,3.0]
[1726900163154,2.70426401,2554.8,2554.4,3.0]
[1726900163448,0.04263985,2554.7,2554.4,3.0]
[1726900163952,0.04263985,2554.6,2554.4,3.0]
[1726900164109,2.70426401,2554.8,2554.4,3.0]
[1726900164305,0.04263985,2554.7,2554.4,3.0]
[1726900164845,0.04263985,2554.6,2554.4,3.0]
[1726900165209,2.70426401,2554.8,2554.4,3.0]
[1726900165409,0.04263985,2554.5,2554.4,3.0]
[1726900165738,2.427,2554.8,2554.4,3.0]
[1726900166292,0.04263985,2554.7,2554.4,3.0]
[1726900166632,2.427,2554.8,2554.4,3.0]
[1726900166859,0.04311378,2554.6,2554.4,3.0]
[1726900167062,2.427,2554.8,2554.4,3.0]
[1726900167260,0.04311378,2554.5,2554.4,3.0]
[1726900167865,2.3689,2554.4,2553.8,7.3]
[1726900168071,2.3689,2554.4,2553.6,3.73080132]
[1726900168241,0.04310517,2554.3,2553.6,3.73080132]
[1726900168562,2.466785,2554.4,2553.8,3.73080132]
[1726900168769,0.04310517,2554.3,2553.8,3.73080132]
[1726900168977,0.28430569,2554.3,2553.9,3.0]
[1726900169472,0.24120052,2554.3,2553.9,3.0]
[1726900178447,2.453,2554.8,2554.1,6.05040132]
[1726900178691,2.453,2554.8,2554.2,3.0]
[1726900178983,0.0429415,2554.7,2554.2,3.0]
[1726900183584,2.453,2554.6,2554.2,3.0]
[1726900183746,0.04280797,2554.5,2554.2,3.0]
[1726900186043,0.04280797,2554.5,2553.9,2.3196]
[1726900186044,0.04280797,2554.5,2553.9,7.04189616]
[1726900186243,0.14069263,2554.5,2553.9,7.04189616]
[1726900186481,2.453,2554.4,2553.9,3.0]
[1726900187062,0.04280797,2554.3,2553.9,3.0]
[1726900187386,0.30217723,2554.3,2553.9,3.0]
[1726900187567,0.30217723,2554.3,2553.9,4.72229616]
[1726900187966,0.30217723,2554.3,2553.9,3.0]
[1726900188346,2.453,2554.2,2553.9,3.0]
[1726900190693,2.453,2554.2,2553.8,3.0]
[1726900190991,2.72423693,2554.2,2553.8,3.0]
[1726900191197,0.04280797,2554.1,2553.8,3.0]
[1726900198361,0.04280797,2554.1,2553.9,3.73252748]
[1726900198596,0.04280797,2554.1,2554.0,3.0]
[1726900198769,2.3952,2554.5,2554.0,3.0]
[1726900198974,0.23952,2554.4,2554.0,3.0]
[1726900199172,0.28227627,2554.4,2554.0,3.0]
[1726900201900,2.3952,2554.3,2553.6,5.4631]
[1726900202199,2.49309453,2554.2,2553.3,5.36325033]
[1726900202402,2.49309453,2554.2,2553.3,3.73252748]
[1726900203391,2.49309453,2554.2,2553.4,3.0]
[1726900203902,3.72729522,2554.2,2553.1,7.3]
[1726900204113,3.72729522,2554.2,2553.0,3.73252748]
[1726900204114,2.3952,2554.0,2553.0,3.73252748]
[1726900204264,2.49310873,2553.9,2553.0,3.73252748]
[1726900205106,2.49310873,2553.9,2553.1,3.0]
[1726900205308,2.49310873,2553.9,2553.0,3.73252748]
[1726900205507,0.24931087,2553.8,2553.0,3.73252748]
[1726900206565,0.24931087,2553.8,2553.2,3.73252748]
[1726900207768,0.24931087,2553.8,2552.8,5.4631]
[1726900208006,0.24931087,2553.8,2553.2,3.73252748]
[1726900209895,2.3952,2553.7,2553.2,3.73252748]
[1726900212984,0.09790981,2553.6,2553.2,3.73252748]
[1726900213380,2.3952,2553.7,2553.2,3.73252748]
[1726900214016,2.3952,2553.7,2553.2,1.72344872]
[1726900215623,0.09791132,2553.6,2552.8,5.4631]
[1726900215830,2.3952,2553.7,2553.2,1.72344872]
[1726900216186,0.0979184,2553.6,2553.2,1.72344872]
[1726900216413,0.0979184,2553.6,2552.8,2.4631]
[1726900216414,2.2789,2553.5,2552.8,5.4631]
[1726900216587,2.2789,2553.5,2553.2,1.72344872]
[1726900217718,0.04212713,2553.4,2553.2,1.72344872]
[1726900221238,0.04212713,2553.4,2552.8,4.18654872]
[1726900221239,0.27422984,2553.4,2552.8,4.18654872]
[1726900221438,2.2789,2553.3,2552.8,1.72344872]
[1726900222040,2.2789,2553.3,2552.6,2.2809]
[1726900222041,0.0419978,2553.2,2552.6,2.2809]
[1726900222382,2.2789,2553.3,2552.8,1.72344872]
[1726900222829,0.0419978,2553.2,2552.8,1.72344872]
[1726900223208,2.2789,2553.3,2553.0,1.72344872]
[1726900223392,0.0419978,2553.1,2552.8,0.04399984]
[1726900223733,2.2789,2553.3,2553.0,1.72344872]
[1726900223934,2.2789,2553.3,2553.2,1.72344872]
[1726900228817,2.2789,2553.3,2553.0,1.72344872]
[1726900229154,2.2789,2553.3,2553.0,4.72344872]
[1726900229357,2.2789,2553.3,2552.8,1.72344872]
[1726900229358,2.50679,2553.3,2552.8,1.72344872]
[1726900229655,2.2789,2553.3,2552.8,1.72344872]
[1726900233017,0.0419978,2553.2,2552.8,1.72344872]
[1726900233415,2.2789,2553.3,2552.8,1.72344872]
[1726900233846,0.0419978,2553.2,2552.8,1.72344872]
[1726900234259,2.2789,2553.3,2552.8,1.72344872]
[1726900234751,0.04189,2553.2,2552.8,1.72344872]
[1726900234961,2.2789,2553.3,2552.8,1.72344872]
[1726900235121,0.04189,2553.1,2552.8,1.72344872]
[1726900235323,2.2789,2553.3,2552.8,1.72344872]
[1726900235523,0.04189,2553.0,2552.8,1.72344872]
[1726900235723,2.2789,2553.3,2552.8,1.72344872]
[1726900235923,0.04189,2552.9,2552.8,1.72344872]
[1726900236165,2.2789,2553.3,2552.8,1.72344872]
[1726900236323,0.04189,2552.9,2552.8,1.72344872]
[1726900236524,2.2789,2553.3,2552.8,1.72344872]
[1726900236846,0.04189,2552.9,2552.8,1.72344872]
[1726900237166,2.2789,2553.3,2552.8,1.72344872]
[1726900237461,0.04189,2552.9,2552.8,1.72344872]
[1726900237635,2.2789,2553.3,2552.8,1.72344872]
[1726900237819,2.50679,2553.3,2552.8,1.72344872]
[1726900238025,0.04189,2553.2,2552.8,1.72344872]
[1726900238438,2.50679,2553.3,2552.8,1.72344872]
[1726900238821,0.04189,2553.2,2552.8,1.72344872]
[1726900239252,2.2789,2553.3,2552.8,1.72344872]
[1726900239763,0.04189,2553.2,2552.8,1.72344872]
[1726900239964,2.2789,2553.3,2552.8,1.72344872]
[1726900240261,0.04189,2553.1,2552.8,1.72344872]
[1726900240464,2.2789,2553.3,2552.8,1.72344872]
[1726900240823,0.04189,2553.2,2552.8,1.72344872]
[1726900241158,2.2789,2553.3,2552.8,1.72344872]
[1726900241463,0.04189,2553.1,2552.8,1.72344872]
[1726900241769,2.387,2553.0,2552.4,3.0]
[1726900242066,0.34643404,2552.9,2552.4,3.0]
[1726900242234,2.42889,2553.0,2552.7,1.72344872]
[1726900242433,2.387,2553.0,2552.7,1.72344872]
[1726900242764,0.04189,2552.9,2552.7,1.72344872]
[1726900246943,0.04189,2552.9,2552.7,4.72344872]
[1726900247451,2.387,2553.4,2552.7,4.72344872]
[1726900247652,3.3627,2553.4,2552.9,1.72344872]
[1726900248056,0.04180807,2553.3,2552.9,1.72344872]
[1726900249631,0.04180807,2553.3,2553.1,4.72344872]
[1726900250140,0.04180807,2553.3,2553.1,3.0]
[1726900250447,2.387,2553.5,2553.1,3.0]
[1726900250656,0.04175202,2553.2,2553.1,3.0]
[1726900250843,2.387,2553.5,2553.1,3.0]
[1726900251049,0.04175202,2553.2,2553.1,3.0]
[1726900251370,2.387,2553.5,2553.1,3.0]
[1726900251670,0.04175202,2553.2,2553.1,3.0]
[1726900251837,2.387,2553.5,2553.1,3.0]
[1726900252037,0.04179514,2553.2,2553.1,3.0]
[1726900252287,2.48491953,2553.5,2553.1,3.0]
[1726900252494,0.04179514,2553.2,2553.1,3.0]
[1726900252637,2.48491953,2553.5,2553.0,2.4064]
[1726900252971,2.387,2553.5,2553.0,2.4064]
[1726900253171,0.04179514,2553.4,2553.0,2.4064]
[1726900255371,0.04179514,2553.4,2552.9,3.0]
[1726900255563,0.29446661,2553.4,2552.8,5.4064]
[1726900256345,2.57941948,2553.3,2552.6,4.63072285]
[1726900256542,2.57941948,2553.3,2552.5,4.63072285]
[1726900256743,0.04179514,2553.2,2552.7,3.0]
[1726900258788,0.09793365,2553.1,2552.7,3.0]
[1726900259079,2.4815,2553.0,2552.5,4.63072285]
[1726900259253,2.4815,2553.0,2552.5,3.0]
[1726900259783,0.04197194,2552.9,2552.5,3.0]
[1726900260683,0.29431913,2552.9,2552.3,4.08412285]
[1726900261546,0.29431913,2552.9,2552.3,2.4534]
[1726900261946,0.29431913,2552.9,2552.3,5.4534]
[1726900262146,2.4815,2552.7,2552.2,1.66781545]
[1726900262351,2.4815,2552.5,2552.2,0.0370926]
[1726900262583,2.4815,2552.3,2552.2,0.0370926]
[1726900263160,2.52329946,2552.3,2552.2,0.0370926]
[1726900264358,0.04179946,2552.3,2552.2,0.0370926]
[1726900265202,2.52329946,2552.3,2552.2,0.0370926]
[1726900265349,2.6212629,2552.3,2552.2,0.0370926]
[1726900265550,3.38026233,2552.3,2552.2,0.0370926]
[1726900265775,2.6212629,2552.3,2552.2,0.0370926]
[1726900265976,2.52329946,2552.3,2552.2,0.0370926]
[1726900271705,0.04179946,2552.3,2552.2,0.0370926]
[1726900272204,0.04108348,2552.3,2552.2,0.0370926]
[1726900272905,2.4815,2552.6,2552.2,0.0370926]
[1726900273073,2.4815,2552.6,2552.2,2.4904926]
[1726900273498,0.04103602,2552.5,2552.2,2.4904926]
[1726900274173,2.4815,2552.8,2552.3,3.0]
[1726900274374,0.04103602,2552.4,2552.2,2.4904926]
[1726900274574,2.5794468,2552.8,2552.2,2.4904926]
[1726900274788,0.04103602,2552.3,2552.2,2.4904926]
[1726900275004,2.5794468,2552.8,2552.2,2.4904926]
[1726900275204,0.04103602,2552.3,2552.2,2.4904926]
[1726900275508,0.09795292,2552.6,2552.2,2.4904926]
[1726900275807,0.09795292,2552.7,2552.2,2.4904926]
[1726900276013,0.04103602,2552.5,2552.2,2.4904926]
[1726900276571,2.4815,2552.8,2552.2,2.4904926]
[1726900276784,0.04103602,2552.4,2552.2,2.4904926]
[1726900276991,2.4815,2552.8,2552.2,2.4904926]
[1726900277207,0.04103602,2552.3,2552.2,2.4904926]
[1726900277869,2.4815,2552.8,2552.2,2.4904926]
[1726900278076,0.04103602,2552.7,2552.2,2.4904926]
[1726900279227,1.03028962,2552.7,2552.2,2.4904926]
[1726900279436,1.12824247,2552.7,2552.2,2.4904926]
[1726900282234,1.12824247,2552.7,2552.2,0.0370926]
[1726900283952,1.03028962,2552.7,2552.3,2.3344]
[1726900284112,1.03028962,2552.7,2552.3,5.3344]
[1726900285933,1.03028962,2552.7,2552.3,2.3344]
[1726900287254,0.04103602,2552.7,2552.3,2.3344]
[1726900287561,7.37,2552.9,2552.3,2.3344]
[1726900287727,0.04115249,2552.6,2552.3,2.3344]
[1726900288051,7.46794298,2552.9,2552.3,2.3344]
[1726900288217,0.04115249,2552.5,2552.3,2.3344]
[1726900288419,0.09794298,2552.9,2552.3,2.3344]
[1726900288631,0.33790728,2552.9,2552.3,2.3344]
[1726900288851,0.04115249,2552.8,2552.3,2.3344]
[1726900293165,0.09794556,2552.7,2552.3,2.3344]
[1726900293332,2.3017,2552.6,2552.3,2.3344]
[1726900293541,2.3017,2552.6,2552.2,0.0370926]
[1726900293866,0.04121722,2552.5,2552.2,0.0370926]
[1726900306197,2.4942,2552.4,2552.2,0.0370926]
[1726900306695,0.04134233,2552.3,2552.2,0.0370926]
[1726900310915,3.7235044,2552.6,2552.2,0.0370926]
[1726900311215,2.4942,2552.6,2552.2,0.0370926]
[1726900311529,0.42348897,2552.5,2552.2,0.0370926]
[1726900312696,0.09796196,2552.4,2552.2,0.0370926]
[1726900313405,0.04134233,2552.3,2552.2,0.0370926]
[1726900315113,0.38214664,2552.5,2552.2,0.0370926]
[1726900315314,0.38214664,2552.5,2552.2,2.3062926]
[1726900315315,0.04134233,2552.3,2552.2,2.3062926]
[1726900315523,0.38214664,2552.5,2552.2,2.3062926]
[1726900315676,0.04134233,2552.3,2552.2,2.3062926]
[1726900315881,2.59215553,2552.6,2552.2,2.3062926]
[1726900316123,2.35984233,2552.3,2552.2,0.0370926]
[1726900316420,0.04134233,2552.3,2552.2,0.0370926]
[1726900316928,2.96250936,2552.6,2552.2,0.0370926]
[1726900317216,0.54605325,2552.6,2552.2,0.0370926]
[1726900317522,1.63907253,2552.9,2552.2,0.0370926]
[1726900317523,0.04134233,2552.5,2552.2,1.76241985]
[1726900317740,0.04134233,2552.5,2552.2,0.0370926]
[1726900318019,0.04134233,2552.4,2552.2,0.0370926]